Cogmind - Beta 15 @@@ ROGUE MODE // 2025.07.09 @ 22:06:16 Player: Skysub Result: Destroyed by 1C-251(R) with Subdweller Laser Performance ------------- Evolutions (0) 0 Regions Visited (2) 400 Robots Destroyed (32) 160 Value Destroyed (781) 781 Prototype IDs (0) 0 Alien Tech Used (0) 0 Bonus (0) 0 TOTAL SCORE: 1341 Bonus ------- None Cogmind --------- Core Integrity 0/250 Matter 283/300 Energy 200/200 System Corruption 2% Temperature Cool (6) Movement Rolling (110) Ox1 Location -10/Subcaves Parts ------- > --- POWER (1) -------- Subdweller Power Source > --- PROPULSION (2) --- Compact Wheel Armored Wheel > --- UTILITY (2) ------ Large Storage Unit > --- WEAPON (2) ------- Medium Laser Subdweller Machine Gun > --- INVENTORY (15) --- Light Ion Engine Subdweller Power Source Subdweller Power Source Subdweller Monowheel Subdweller Monowheel Machine Analyzer Subdweller Optics ECM Suite Assault Rifle Light Assault Rifle Subdweller Machine Gun Flamer Mining Claw Peak State ------------ > --- POWER ------------ Subdweller Power Source > --- PROPULSION ------- Compact Wheel Armored Wheel > --- UTILITY ---------- Large Storage Unit > --- WEAPON ----------- Medium Laser Subdweller Machine Gun > --- INVENTORY -------- Light Ion Engine Subdweller Power Source Subdweller Power Source Subdweller Monowheel Subdweller Monowheel Machine Analyzer Subdweller Optics ECM Suite Assault Rifle Light Assault Rifle Subdweller Machine Gun Flamer Mining Claw [Rating: 11] Favorites ----------- Power Light Ion Engine Engine Light Ion Engine Propulsion Light Treads Treads Light Treads Wheel Armored Wheel Utility Large Storage Unit Device Structural Scanner Storage Large Storage Unit Weapon Assault Rifle Energy Gun Medium Laser Ballistic Gun Assault Rifle Launcher Grenade Launcher Build | -11 -10 -10 ------- Run | Yrd Mat Sub Slots Evolved . | . . . Power . | . . . Propulsion . | . . . Utility . | . . . Weapon . | . . . Parts Attached 17 | 6 8 3 Power 3 | 1 1 1 Engine 3 | 1 1 1 Core . | . . . Reactor . | . . . Propulsion 4 | 2 2 . Treads 2 | 2 . . Leg . | . . . Wheel 2 | . 2 . Hover . | . . . Flight . | . . . Utility 4 | 1 3 . Device 2 | . 2 . Storage 2 | 1 1 . Processor . | . . . Hackware . | . . . Protection . | . . . Artifact . | . . . Weapon 6 | 2 2 2 Energy Gun 1 | . . 1 Energy Cannon . | . . . Ballistic Gun 4 | 2 1 1 Ballistic Cannon . | . . . Launcher 1 | . 1 . Special Weapon . | . . . Impact Weapon . | . . . Slashing Weapon . | . . . Piercing Weapon . | . . . Special Melee Weapon . | . . . Unidentified Prototypes . | . . . Parts Lost 6 | . 2 4 Power 1 | . 1 . Propulsion 2 | . 1 1 Utility 1 | . . 1 Weapon 2 | . . 2 Highest Loss Streak 2 | . 2 2 To Critical Strikes . | . . . Average Backups 6 | 2 6 9 Power . | . . 1 Propulsion 1 | . . 1 Utility 1 | . 1 2 Weapon 3 | . 3 4 Tool/Special . | . . . Unused Backups 10 | . 1 9 Power 1 | . . 1 Propulsion 2 | . . 2 Utility 3 | . . 3 Weapon 4 | . 1 3 Tool/Special . | . . . Average Slot Usage (%) 91 | . 91 89 Engine 13 | . 13 12 Treads 18 | . 20 6 Wheel 8 | . 7 15 Device 6 | . 4 11 Storage 15 | . 15 14 Ballistic Gun 26 | . 27 20 Launcher 1 | . . 5 Peak Build Rating 11 | 6 8 11 Average Rating 7 | 5 6 8 On Entrance 4 | . 6 8 Naked Turns . | . . . Heaviest Build 32 | 11 32 31 Greatest Support 40 | 40 40 28 Greatest Overweight (x) 2 | . 2 2 Average Overweight (x) . | . . 1 Largest Inventory Capacity 15 | 8 15 15 Average Capacity 12 | 7 12 15 Most Carried 14 | 4 8 14 Average Carried 6 | 2 6 9 Final Capacity 15 | 8 15 15 Final Carried 13 | 4 6 13 Class Distribution -------------------- 100% | Mutant Dominant Class ---------------- Mutant | -10/Materials Mutant | -10/Subcaves Resources | -11 -10 -10 ----------- Run | Yrd Mat Sub Matter Collected 924 | 280 293 351 Remotely . | . . . Salvage Created 920 | 138 621 161 Parts 80 | 15 49 16 Haulers Intercepted 1 | . 1 . Recyclers Shooed 1 | . 1 . Parts Field Recycled . | . . . Retrieved Matter . | . . . Parts Self-Destructed 6 | . . 6 Prevented . | . . . Kills | -11 -10 -10 ------- Run | Yrd Mat Sub Combat Hostiles Destroyed 23 | . 16 7 Guns 18 | . 13 5 AOE 5 | . 3 2 Classes Destroyed 9 | 2 5 2 Builder 1 | . 1 . Tunneler 3 | 3 . . Hauler 1 | . 1 . Recycler 1 | 1 . . Turret 2 | . . 2 Watcher 1 | . 1 . Swarmer 7 | . 3 4 Grunt 13 | . 13 . Subdweller 3 | . . 3 Best Kill Streak 6 | 4 6 4 Combat Bots Only 4 | . 4 4 Max Kills in Single Turn 4 | 1 4 2 Gunslinging . | . . . Exploded 3 | . 3 1 Melee . | . . . Uniques/NPCs Destroyed . | . . . Combat | -11 -10 -10 -------- Run | Yrd Mat Sub Hostile Shots Fired 120 | . 58 62 Missed 43 | . 17 26 Hits 77 | . 41 36 Projectile 77 | . 41 36 Critical Strikes 2 | . 1 1 Damage Taken 1117 | . 544 573 Core 258 | . 109 149 Absorbed by Shields . | . . . Core Remaining (%) 100 | 100 . . Volleys Fired 89 | 5 59 25 Largest 2 | 2 2 2 Hottest 80 | 40 50 80 Shots Fired 171 | 10 118 43 Gun 155 | 10 116 29 Cannon . | . . . Launcher 16 | . 2 14 Special . | . . . Kinetic 149 | 10 116 23 Thermal 6 | . . 6 Explosive 16 | . 2 14 Electromagnetic . | . . . Robot Hit Streak 13 | 4 5 13 Robot Miss Streak 6 | 2 6 2 Penetration Max . | . . . Secondary Targets . | . . . Shots Hit Robots 94 | 6 63 25 Core Hits 62 | 5 36 21 Critical Kills . | . . . Critical Parts Destroyed 2 | 1 1 . Critical Strikes 2 | 1 1 . Destroy 2 | 1 1 . Melee Attacks . | . . . Impact . | . . . Slashing . | . . . Piercing . | . . . Sneak Attacks . | . . . Combat Hostiles . | . . . Follow-up Attacks . | . . . Damage Inflicted 1676 | 85 886 705 Guns 1039 | 80 668 291 Cannons . | . . . Explosions 623 | . 209 414 Melee . | . . . Ramming 14 | 5 9 . Kinetic 964 | 80 668 216 Thermal 75 | . . 75 Explosive 623 | . 209 414 Electromagnetic . | . . . Impact . | . . . Slashing . | . . . Piercing . | . . . Highest Corruption 2 | . 2 2 Average Corruption 1 | . 1 2 Corruption Purged . | . . . Corruption Blocked . | . . . Effects 28 | . 20 8 Message Errors 8 | . 8 . Matter Fused 8 | . 4 4 Heat Flow Errors 2 | . 1 1 Energy Discharges 1 | . 1 . Parts Rejected 1 | . . 1 Data Loss (minor) 4 | . 2 2 Data Loss (major) 2 | . 2 . Alerts 2 | . 2 . Overload Shots . | . . . Overflow Damage 39 | . . 39 Projectiles . | . . . Explosions 39 | . . 39 Melee . | . . . Knockbacks . | . . . Impact . | . . . Kinetic . | . . . Secondary . | . . . Self-Inflicted Damage 97 | . 4 93 Shots 3 | . . 3 Rammed 4 | 1 3 . Targets Rammed 4 | 1 3 . Kicked . | . . . Crushed . | . . . Highest Temperature 242 | . 242 222 Average Temperature 41 | . 33 122 Received Heat Transfer 393 | . 285 108 Siege Activations . | . . . Martial Activations . | . . . Shielding Activations . | . . . Robots Disrupted . | . . . Combat Hostiles . | . . . Robots Corrupted . | . . . Combat Hostiles . | . . . Parts Fried . | . . . Impact Corruptions . | . . . Robots Melted . | . . . Combat Hostiles . | . . . Parts Melted 2 | . . 2 Heat Transferred 222 | . . 222 Parts Sabotaged . | . . . Parts Stolen . | . . . Parts Stripped . | . . . Power Chain Reactions . | . . . Alert | -11 -10 -10 ------- Run | Yrd Mat Sub Maximum Alert Level . | . . . Low Security (%) 100 | 100 100 . Level 1 . | . . . Level 2 . | . . . Level 3 . | . . . Level 4 . | . . . Level 5 . | . . . High Security . | . . . Max Security . | . . . Peak Influence 127 | 20 127 . Initial . | . . . Average 18 | 4 19 . Influence Increases 837 | 20 472 345 Destroy 0b10 Robot/C 440 | . 320 120 Destroy 0b10 Robot/NC 35 | 20 15 . Destroy Leader 74 | . 74 . Successful Hack 16 | . 16 . Select Force Hacks 30 | . 30 . Destroy Structure 17 | . 17 . Lose Combat Pursuer 225 | . . 225 Influence Decreases 692 | 20 472 200 Time Decay 501 | 20 321 160 Lost Part 60 | . 20 40 Purge Threat 131 | . 131 . Squads Dispatched 3 | . 3 . Investigation 1 | . 1 . Extermination . | . . . Reinforcement 2 | . 2 . Assault . | . . . Garrison . | . . . Intercept . | . . . Searches Triggered . | . . . Construction Impeded . | . . . Haulers Reinforced . | . . . Active Scanning Responses . | . . . Cargo Convoy Interrupts . | . . . Stealth | -11 -10 -10 --------- Run | Yrd Mat Sub Distress Signals 1 | . 1 . Communications Jammed . | . . . Distress Signals . | . . . Times Spotted 38 | . 25 13 Peak Tracking Total 6 | . 4 6 Tactical Retreats 3 | . . 3 Traps | -11 -10 -10 ------- Run | Yrd Mat Sub Traps Triggered 2 | . 2 . Indirectly . | . . . Trap Hack Attempts . | . . . Triggered . | . . . Disarmed . | . . . Reprogrammed . | . . . Reused . | . . . Traps Extracted . | . . . Installed . | . . . Triggered . | . . . Machines | -11 -10 -10 ---------- Run | Yrd Mat Sub Machines Disabled 3 | . . 3 Max in Single Turn 2 | . . 2 Machines Repaired . | . . . Machines Dismantled . | . . . Machines Sabotaged . | . . . Overloaded Fab Kills . | . . . Hacking | -11 -10 -10 --------- Run | Yrd Mat Sub Machines Accessed 6 | . 6 . Terminals 5 | . 5 . Fabricators . | . . . Repair Stations . | . . . Recycling Units 1 | . 1 . Scanalyzers . | . . . Garrison Access . | . . . Total Hacks 17 | . 17 . Successful 14 | . 14 . Failed 3 | . 3 . Catastrophic . | . . . Database Lockouts . | . . . Manual 15 | . 15 . Terminals 15 | . 15 . Fabricators . | . . . Repair Stations . | . . . Recycling Units 2 | . 2 . Scanalyzers . | . . . Garrison Access . | . . . Terminal Hacks 3 | . 3 . Terminal Index 1 | . 1 . Unreport Threat 1 | . 1 . Zone Layout 1 | . 1 . Fabricator Hacks . | . . . Repair Station Hacks . | . . . Recycling Unit Hacks 1 | . 1 . Report Inventory 1 | . 1 . Scanalyzer . | . . . Garrison Access Hacks . | . . . Unauthorized Hacks 10 | . 10 . Terminals 9 | . 9 . Botnet 4 | . 4 . Skim 5 | . 5 . Fabricators . | . . . Repair Stations . | . . . Recycling Units 1 | . 1 . Tunnel 1 | . 1 . Scanalyzers . | . . . Garrison Access . | . . . Data Cores Recovered . | . . . Used . | . . . Hacking Detections 3 | . 3 . Full Trace Events . | . . . Feedback Events . | . . . Feedback Blocked . | . . . Robot Schematics Acquired . | . . . Robots Built . | . . . Authchips . | . . . Time . | . . . Total Robot Build Rating . | . . . Part Schematics Acquired . | . . . Parts Built . | . . . Authchips . | . . . Time . | . . . Total Part Build Rating . | . . . Parts Repaired . | . . . Time . | . . . Parts Recycled . | . . . Recycled Matter . | . . . Retrieved Matter . | . . . Retrieved Components . | . . . Parts Scanalyzed . | . . . Part Schematics Acquired . | . . . Parts Damaged . | . . . Bothacking | -11 -10 -10 ------------ Run | Yrd Mat Sub Used RIF Installer . | . . . Robots Hacked . | . . . Non-combat . | . . . Combat . | . . . Robot Hacks Applied . | . . . Relay Couplers Released . | . . . Fabnet Peak Effective % . | . . . Robots Rewired . | . . . Allies Hacked . | . . . Hacks Repelled . | . . . Allies | -11 -10 -10 -------- Run | Yrd Mat Sub Total Allies . | . . . Largest Group . | . . . Highest-Rated Group . | . . . Highest-Rated Ally . | . . . Total Orders . | . . . Ally Attacks . | . . . Total Damage . | . . . Kills . | . . . Allies Corrupted . | . . . Allies Melted . | . . . Intel | -11 -10 -10 ------- Run | Yrd Mat Sub Active Infowar (turns) 788 | . 514 274 Structural 786 | . 512 274 ECM 2 | . 2 . Robot Analysis Total . | . . . Derelict Logs Recovered . | . . . Drone Launches . | . . . Drone Recoveries . | . . . Exploration | -11 -10 -10 ------------- Run | Yrd Mat Sub Turns Passed 1937 | 102 1505 330 Spaces Moved 660 | 52 468 140 Core 8 | 8 . . Treads 328 | 44 284 . Legs . | . . . Wheels 324 | . 184 140 Hover . | . . . Flight . | . . . Fastest Speed 50 | 50 115 95 Average Speed 137 | 143 143 118 Slowest Speed 160 | 160 160 120 Overloaded Moves . | . . . Propulsion Burnouts . | . . . Robots Hopped . | . . . Potential Cave-ins . | . . . Cave-ins Triggered . | . . . Exploration Rate (%) 34 | 4 86 14 Regions Visited 2 Branch Regions 1 Pre-discovered Areas 3 | . 3 . Known Exits Taken . | . . . Unknown Exits Taken 2 | 1 1 . Scrap Searched 4 | . . 4 Spaces Dug . | . . . Terrain Destroyed 37 | . 15 22 Melee . | . . . Projectile . | . . . AOE 37 | . 15 22 Terrain Rammed . | . . . Walls Destroyed . | . . . Machines Disabled . | . . . Actions | -11 -10 -10 --------- Run | Yrd Mat Sub Total 1519 | 67 1193 259 Wait 722 | . 650 72 Move 659 | 52 467 140 Hop . | . . . Pick Up 18 | 4 3 11 Fast Attach 8 | 6 1 1 Attach 6 | . 3 3 Detach 1 | . 1 . Swap 11 | . 5 6 Drop 2 | . 1 1 Fire 89 | 5 59 25 Melee . | . . . Ram 2 | . 2 . Kick . | . . . Crush 1 | . 1 . Escape Stasis . | . . . Rewire . | . . . Trap . | . . . Miscellaneous . | . . . Route ------- -11/Scrapyard -10/Materials (discovered 5 exits: *Mat x3 / [*Min] / [*Sub]) -10/Subcaves (discovered 3 exits: Mat x2 / [*Rec]) History --------- Turn | Location | Event 12 | -11/Scrapyard | Discovered new exit (range 15) 103 | -11/Scrapyard | Entered Materials 302 | -10/Materials | Build established: Mutant 565 | -10/Materials | Discovered new exit (range 5) 665 | -10/Materials | Discovered new exit (range 6) 944 | -10/Materials | Discovered new exit (range 5) 1141 | -10/Materials | Learned location of Subcaves (-10) 1195 | -10/Materials | Discovered new exit (range 9) 1286 | -10/Materials | Identified exit to Materials 1286 | -10/Materials | Learned location of 1 exit from Materials 1345 | -10/Materials | Learned 4 Subcaves zone layouts 1393 | -10/Materials | Loaded intel: 10 trap records 1429 | -10/Materials | Learned location of 2 exits from Subcaves 1608 | -10/Materials | Entered Subcaves 1609 | -10/Subcaves | Approached by a straggling Scientist 1609 | -10/Subcaves | Identified exit to Materials 1634 | -10/Subcaves | Discovered new exit (range 12) 1635 | -10/Subcaves | Core integrity fell below 50% 1748 | -10/Subcaves | Disturbed a concealed Subdweller 1887 | -10/Subcaves | Core integrity fell below 20% 1930 | -10/Subcaves | Shifting Twisted Machinery released Sub. Beam Cannon 1938 | -10/Subcaves | Destroyed by 1C-251(R) with Subdweller Laser Last Messages --------------- 01860_ Subatomizers dissect the Disposable Heat Sink. 01865_ System corrupted: Component data lost. 01872_ Subatomizers dissect the Disposable Heat Sink. 01880_ Assault Rifle destroyed. 01882_ Structural Scanner destroyed. 01885_ Subatomizers dissect the Disposable Heat Sink. 01888_ OE-UYQ(R) destroyed. 01891_ Acquired 21 matter. 01895_ Acquired Sub. Machine Gun. 01896_ Subatomizers dissect the Disposable Heat Sink. 01898_ FZ-UBV(u) builds Twisted Machinery. 01902_ System corrupted: Matter fused (-5). 01902_ FZ-UBV(u) builds Twisted Machinery. 01907_ Sub. Monowheel melted. 01907_ Sub. Optics melted. 01907_ 6C-56O(R) destroyed. 01912_ Acquired Sub. Power Source. 01913_ Acquired 31 matter. Sub. Beam Cannon falls loose from the Twisted Machinery. 01933_ Grenade Launcher destroyed. Map ----- +----------------------------------------------------+ | ???????????????????????????????????????????????? | | ???????????????????????????????????????????????? | | ???????????????????????????????????????????????? | | ???????????????????????????????????????????????? | | ???????????????????????????????????????????????? | | ???????????????????????????????????????????????? | | ???????????????????????????????????????????????? | | ???????????????????????????????????????????????? | | ???????????????????????????????????????????????? | | ???????????????????????????????????????????????? | | ???????????????????????????????????????????????? | | ???????????????????????????????????????????????? | | ???????????????????????????????????????????????? | | ???????????????????????????????????????????????? | | ??????????????#??"?????????????????????????????? | | ??????????????? """?????????"??????????????????? | | ????????????? "" "" ????????"??????????????????? | | ????????????? ##?##??#"??????????????????? | | ???????????? R ## ?# #??????????????????? | | ????????????? "" ? ???????????????????? | | ???????????????R ]"" ? ???????????????????? | | ????????????????? # #???????????????????? | | ??????????????????? ##??????????????????? | | ????????????????????? #??????????????????? | | ??????????????????????? #??????????????????? | | ????????????????????????#@ ##??????????????????? | | ???????????????????????## "#??????????????????? | | ???????????????????????# ##??????????????????? | | ??????????????????????## ##??????????????????? | | ?????????????????????## "#??????????????????? | | ???????????????#?????# ##??????????????????? | | ???????????????# ???## ##??????????????????? | | ??????????????## ??# ##?????????????????? | | ??????????????# ## ####??????????????? | | ???????????????# " ##?????????????? | | ???????????????## """ #?????????????? | | ????????????????# ## "## ##?????????????? | | ????????????????# # "#### #??????????????? | | ????????????????# ### "#?# #??????????????? | | ????????????????####?# #### #??????????????? | | ????????????##########&##### #??????????????? | | ????????????##########&%&###""""##?????????????? | | ????????????## !## & &#### ""#?????????????? | | ????????????##!&"##" ## ### #?????????????? | | ????????????###%&!! ## ### ##?????????????? | | ????????????## &# #" ## # #?????????????? | | ????????????## *### # #?????????????? | | ????????????###### """"" ##?????????????? | | ????????????###### " """""" ##?????????????? | | ????????????????## ## ### # #??????????????? | +----------------------------------------------------+ Best States ------------- Heat Dissipation 25 Energy Generation 15 Energy Capacity 200 Matter Stores 300 Matter Capacity 300 Sight Range 16 Terrain Scan Density 10 ECM Strength 1 Evasion (%) 40 Recoil Reduction 2 Item Schematics ----------------- None Robot Schematics ------------------ None Fabricated ------------ Nothing Repaired ---------- Nothing Alien Tech Used ----------------- None Achievements -------------- None Challenges ------------ None Game ------ Seed CryofiberAssaultEdition Manual? 0 Play Time 00:10:59 Cumulative 150.6 hours Start 2025.07.09 @ 21:58:02 End 2025.07.09 @ 22:06:16 Sessions 1 Manual Loads 0 Difficulty Rogue Special Mode None Game No. 171 Rogue 171 Adventurer 0 Explorer 0 Win Type - Total 3 Types 1/0/0/1/0/0/0/0/0/1 Lore% 65 Gallery% 61 Achievement% 53 Wizard Run 0 Options --------- Layout 1 ASCII 0 Keyboard 1 Movement Numpad Keybinds 0 Fullscreen 1 Font 32/SmallcapsGlow Map View 77x35 Zoom Use 0% Tactical HUD 1 Map Filters NONE Filters NONE Steam 1 RUN: 14ff7b5f-1de0-4ea9-a7dd-305ab0a2aacc